bitfinex/quotes_BTCUSD_20240901
["timestamp","ask_amount","ask_price","bid_price","bid_amount"]
[1725155569618,1.456348,59061.0,59060.0,0.0070006]
[1725155569619,1.81898,59061.0,59060.0,0.0070006]
[1725155570249,1.84416882,59061.0,59060.0,0.0070006]
[1725155573600,1.87073502,59061.0,59060.0,0.0070006]
[1725155575080,1.87073502,59061.0,59060.0,0.0693006]
[1725155575498,1.8455462,59061.0,59060.0,0.0693006]
[1725155576563,1.87022908,59061.0,59060.0,0.0693006]
[1725155576834,1.87022908,59061.0,59060.0,0.0070006]
[1725155583482,1.8455462,59061.0,59060.0,0.0070006]
[1725155583696,1.8455462,59061.0,59060.0,0.0720006]
[1725155584756,1.8455462,59061.0,59060.0,0.0070006]
[1725155586727,1.94967522,59061.0,59060.0,0.0070006]
[1725155588580,2.28830722,59061.0,59060.0,0.0070006]
[1725155589580,1.94967522,59061.0,59060.0,0.0070006]
[1725155590329,2.28830722,59061.0,59060.0,0.0070006]
[1725155590750,2.51825886,59061.0,59060.0,0.0070006]
[1725155591971,2.34970722,59061.0,59060.0,0.0070006]
[1725155594363,3.36811922,59061.0,59060.0,0.0070006]
[1725155594592,3.04502222,59061.0,59060.0,0.0070006]
[1725155595056,2.95053922,59061.0,59060.0,0.0070006]
[1725155595463,2.95053922,59061.0,59060.0,0.0050006]
[1725155595464,2.74231822,59061.0,59060.0,0.0050006]
[1725155595801,2.74131822,59061.0,59060.0,6e-07]
[1725155596015,2.51825886,59061.0,59060.0,6e-07]
[1725155598435,2.85689086,59061.0,59060.0,6e-07]
[1725155599299,2.94639086,59061.0,59060.0,6e-07]
[1725155599550,1.862729,59053.0,59052.0,0.0008998]
[1725155599774,5.89948502,59053.0,59052.0,0.0008998]
[1725155600039,5.76043702,59053.0,59052.0,0.0008998]
[1725155600292,5.38828202,59053.0,59052.0,0.0008998]
[1725155600510,5.39328202,59053.0,59052.0,0.0008998]
[1725155600740,5.56183366,59053.0,59052.0,0.0018998]
[1725155601197,3.72890066,59053.0,59052.0,0.0018998]
[1725155601427,3.40448866,59053.0,59052.0,0.0018998]
[1725155602077,3.40448866,59053.0,59052.0,0.0028998]
[1725155602738,3.43106148,59053.0,59052.0,0.0028998]
[1725155604022,3.32198866,59053.0,59052.0,0.0028998]
[1725155604438,3.34675764,59053.0,59052.0,0.0028998]
[1725155604854,3.71756664,59053.0,59052.0,0.0028998]
[1725155605084,3.70210064,59053.0,59052.0,0.0028998]
[1725155606850,3.7286734,59053.0,59052.0,0.0028998]
[1725155610060,3.7354704,59053.0,59052.0,0.0028998]
[1725155610839,3.2468134,59053.0,59052.0,0.0028998]
[1725155612201,2.52835276,59053.0,59052.0,0.0028998]
[1725155612415,2.55271876,59053.0,59052.0,0.0028998]
[1725155612847,2.54592176,59053.0,59052.0,0.0028998]
[1725155614134,2.31047176,59053.0,59052.0,0.0028998]
[1725155620274,2.52927476,59053.0,59052.0,0.0028998]
[1725155620467,2.6978264,59053.0,59052.0,0.0028998]
[1725155620682,2.7627264,59053.0,59052.0,0.0028998]
[1725155621535,2.73615364,59053.0,59052.0,0.0028998]
[1725155622162,3.22304464,59053.0,59052.0,0.0028998]
[1725155624368,3.21073764,59053.0,59052.0,0.0028998]
[1725155624795,3.23731026,59053.0,59052.0,0.0028998]
[1725155625047,3.08721026,59053.0,59052.0,0.0028998]
[1725155625258,3.03737626,59053.0,59052.0,0.0028998]
[1725155629475,3.01080364,59053.0,59052.0,0.0028998]
[1725155630546,2.842252,59053.0,59052.0,0.0028998]
[1725155632590,3.18093,59053.0,59052.0,0.0028998]
[1725155633359,3.25863,59053.0,59052.0,0.0028998]
[1725155633580,3.29020338,59053.0,59052.0,0.0028998]
[1725155634193,3.29020338,59053.0,59052.0,0.0018998]
[1725155634405,3.45875502,59053.0,59052.0,0.0018998]
[1725155634611,3.47275502,59053.0,59052.0,0.0018998]
[1725155634874,3.47275502,59053.0,59052.0,0.0008998]
[1725155635231,3.48675502,59053.0,59052.0,0.0008998]
[1725155635482,3.304926,59053.0,59052.0,0.0008998]
[1725155635665,3.40905502,59053.0,59052.0,0.0008998]
[1725155635873,2.73248638,59053.0,59052.0,0.0008998]
[1725155636083,2.90182538,59053.0,59052.0,0.0008998]
[1725155636516,2.74705038,59053.0,59052.0,0.0008998]
[1725155636721,3.90486038,59053.0,59052.0,0.0008998]
[1725155637588,3.86147438,59053.0,59052.0,0.0008998]
[1725155639531,3.67993438,59053.0,59052.0,0.0008998]
[1725155639746,3.65516438,59053.0,59052.0,0.0008998]
[1725155640598,2.61594938,59053.0,59052.0,0.0008998]
[1725155643009,2.52172338,59053.0,59052.0,0.0008998]
[1725155644067,2.52172338,59053.0,59052.0,0.1444998]
[1725155644068,2.21134336,59053.0,59052.0,0.1444998]
[1725155644284,2.31547238,59053.0,59052.0,0.1444998]
[1725155645555,2.33847238,59053.0,59052.0,0.1444998]
[1725155648193,2.311899,59053.0,59052.0,0.1444998]
[1725155655867,2.20776998,59053.0,59052.0,0.1444998]
[1725155656850,2.2520695,59053.0,59052.0,0.1444998]
[1725155660688,1.8903915,59053.0,59052.0,0.1464998]
[1725155660944,1.40921654,59053.0,59052.0,0.1464998]
[1725155661161,1.41003454,59053.0,59052.0,0.1464998]
[1725155661662,1.383463,59053.0,59052.0,0.1464998]
[1725155662124,0.692107,59053.0,59052.0,0.1464998]
[1725155662359,0.678107,59053.0,59052.0,0.1474998]
[1725155662593,0.678107,59053.0,59052.0,0.1484998]
[1725155663032,0.38478634,59053.0,59052.0,0.1484998]
[1725155663489,0.48478634,59053.0,59052.0,0.1484998]
[1725155664207,0.51135388,59053.0,59052.0,0.1484998]
[1725155666883,0.85003188,59053.0,59052.0,0.1484998]
[1725155667533,0.34201488,59053.0,59052.0,0.1484998]
[1725155667734,0.51135388,59053.0,59052.0,0.1484998]
[1725155668402,0.85003188,59053.0,59052.0,0.1484998]
[1725155668607,0.85003188,59053.0,59052.0,0.1474998]
[1725155669021,0.85003188,59053.0,59052.0,0.1484998]
[1725155669022,0.85103188,59053.0,59052.0,0.1484998]
[1725155669219,0.82446434,59053.0,59052.0,0.1464998]
[1725155669423,0.82646434,59053.0,59052.0,0.1534998]
[1725155669858,0.82546434,59053.0,59052.0,0.1484998]
[1725155670345,0.82546434,59053.0,59052.0,0.1534998]
[1725155670346,1.16514234,59053.0,59052.0,0.1534998]
[1725155670792,0.48778634,59053.0,59052.0,0.1534998]
[1725155671009,0.82646434,59053.0,59052.0,0.1534998]
[1725155671240,0.82446434,59053.0,59052.0,0.1514998]
[1725155671661,0.82546434,59053.0,59052.0,0.1574998]
[1725155672139,0.82546434,59053.0,59052.0,0.1524998]
[1725155672140,0.21644734,59053.0,59052.0,0.1524998]
[1725155672348,0.21644734,59053.0,59052.0,0.15588628]
[1725155672571,0.21644734,59053.0,59052.0,0.16088628]
[1725155672747,0.21744734,59053.0,59052.0,0.16088628]
[1725155674396,0.24401387,59053.0,59052.0,0.16088628]
[1725155674832,0.75203087,59053.0,59052.0,0.0138998]
[1725155675031,1.19070887,59053.0,59052.0,0.0138998]
[1725155675272,1.52938687,59053.0,59052.0,0.0138998]
[1725155679224,1.50282034,59053.0,59052.0,0.0138998]
[1725155683691,1.52938929,59053.0,59052.0,0.0138998]
[1725155689231,1.50282034,59053.0,59052.0,0.0138998]
[1725155690860,1.50282034,59053.0,59052.0,0.1576998]
[1725155692330,1.52938857,59053.0,59052.0,0.1576998]
[1725155700607,1.19071057,59053.0,59052.0,0.1576998]
[1725155700815,1.16414234,59053.0,59052.0,0.1576998]
[1725155702730,1.22884234,59053.0,59052.0,0.0138998]
[1725155703144,1.56752034,59053.0,59052.0,0.0138998]
[1725155705329,1.59409008,59053.0,59052.0,0.0138998]
[1725155705782,1.59309008,59053.0,59052.0,0.0088998]
[1725155705994,1.59409008,59053.0,59052.0,0.0138998]
[1725155707039,1.61828316,59053.0,59052.0,0.0078998]
[1725155707277,1.61728316,59053.0,59052.0,0.0058998]
[1725155707695,1.61728316,59053.0,59052.0,0.0048998]
[1725155708328,1.61728316,59053.0,59052.0,0.0058998]
[1725155708757,1.61728316,59053.0,59052.0,0.0078998]
[1725155709188,1.59071342,59053.0,59052.0,0.0078998]
[1725155710687,1.71784244,59053.0,59052.0,0.0058998]
[1725155711135,2.05652044,59053.0,59052.0,0.0058998]
[1725155711378,1.71784244,59053.0,59052.0,0.0058998]
[1725155712227,2.08309081,59053.0,59052.0,0.0058998]
[1725155713871,1.97896179,59053.0,59052.0,0.0058998]
[1725155714092,2.08309081,59053.0,59052.0,0.0058998]
[1725155715649,1.64028379,59053.0,59052.0,0.0058998]
[1725155716779,1.97896179,59053.0,59052.0,0.0058998]
[1725155717000,2.08309081,59053.0,59052.0,0.0058998]
[1725155722611,3.65369581,59053.0,59052.0,0.0058998]
[1725155723013,3.99237381,59053.0,59052.0,0.0058998]
[1725155723250,3.65369581,59053.0,59052.0,0.0058998]
[1725155723452,3.33330281,59053.0,59052.0,0.0058998]
[1725155724076,2.52669181,59053.0,59052.0,0.0058998]
[1725155724283,2.37635881,59053.0,59052.0,0.0058998]
[1725155727686,2.71503681,59053.0,59052.0,0.0058998]
[1725155728131,2.71503681,59053.0,59052.0,0.0028998]
[1725155728568,2.71503681,59053.0,59052.0,0.0008998]
[1725155728569,2.72903681,59053.0,59052.0,0.0008998]
[1725155729000,2.73803681,59053.0,59052.0,0.0008998]
[1725155729249,2.4911371,59053.0,59052.0,0.0008998]
[1725155730348,2.49886601,59053.0,59052.0,0.0008998]
[1725155737635,2.50566201,59053.0,59052.0,0.0008998]
[1725155738668,2.29289401,59053.0,59052.0,0.0008998]
[1725155738842,3.70713101,59053.0,59052.0,0.0008998]
[1725155739038,3.56704801,59053.0,59052.0,0.0008998]
[1725155740665,3.45634601,59053.0,59052.0,0.0008998]
[1725155740872,3.37538101,59053.0,59052.0,0.0008998]
[1725155741877,3.29488101,59053.0,59052.0,0.0008998]
[1725155747394,3.19075199,59053.0,59052.0,0.0008998]
[1725155747593,2.88613901,59053.0,59052.0,0.0008998]
[1725155747769,2.8792281,59053.0,59052.0,0.0008998]
[1725155749491,2.8145281,59053.0,59052.0,0.0008998]
[1725155749695,2.6939251,59053.0,59052.0,0.0008998]
[1725155751344,2.24611808,59053.0,59052.0,0.0008998]
[1725155751563,2.0866211,59053.0,59052.0,0.0008998]
[1725155751804,2.0916211,59053.0,59052.0,0.0008998]
[1725155752042,2.0798251,59053.0,59052.0,0.0008998]
[1725155752264,2.0848251,59053.0,59052.0,0.0008998]
[1725155753802,2.0439651,59053.0,59052.0,0.0008998]
[1725155757521,2.4497431,59053.0,59052.0,0.0008998]
[1725155759190,6.0669841,59053.0,59052.0,0.0008998]
[1725155759412,5.9223681,59053.0,59052.0,0.0008998]
[1725155759667,5.8338351,59053.0,59052.0,0.0008998]
[1725155759879,5.7225451,59053.0,59052.0,0.0008998]
[1725155762059,5.75127835,59053.0,59052.0,0.0008998]
[1725155763407,5.61276935,59053.0,59052.0,0.0008998]
[1725155765904,5.95144735,59053.0,59052.0,0.0008998]
[1725155766933,5.61276935,59053.0,59052.0,0.0008998]
[1725155767546,5.61276935,59053.0,59049.0,0.0008998]
[1725155767547,1.867828,59050.0,59049.0,6e-07]
[1725155767788,2.05825702,59050.0,59049.0,6e-07]
[1725155767957,2.49195302,59050.0,59049.0,6e-07]
[1725155768184,2.509681,59050.0,59049.0,6e-07]
[1725155769584,2.515681,59050.0,59049.0,6e-07]
[1725155769787,2.520681,59050.0,59049.0,6e-07]
[1725155770208,2.28936213,59050.0,59049.0,6e-07]
[1725155770429,2.05479515,59050.0,59049.0,0.1406006]
[1725155771064,2.56442115,59050.0,59049.0,0.1406006]
[1725155771720,2.49652115,59050.0,59049.0,0.1406006]
[1725155775265,2.05479515,59050.0,59049.0,0.1406006]
[1725155775472,2.49403215,59050.0,59049.0,0.1406006]
[1725155776551,2.44344515,59050.0,59049.0,0.1406006]
[1725155776756,2.37554515,59050.0,59049.0,0.1406006]
[1725155779628,2.03684915,59050.0,59049.0,0.1406006]
[1725155779835,1.85899015,59050.0,59049.0,0.1406006]
[1725155786373,1.90969087,59050.0,59049.0,0.1406006]
[1725155787390,2.14342287,59050.0,59049.0,0.1406006]
[1725155788130,2.14342287,59050.0,59049.0,6e-07]
[1725155788339,1.83309987,59050.0,59049.0,6e-07]
[1725155788979,1.82709987,59050.0,59049.0,6e-07]
[1725155789417,2.17179587,59050.0,59049.0,6e-07]
[1725155789621,2.16679587,59050.0,59049.0,6e-07]
[1725155789822,2.2127059,59050.0,59049.0,6e-07]
[1725155790026,2.2327059,59050.0,59049.0,6e-07]
[1725155790247,2.2227059,59050.0,59049.0,6e-07]
[1725155790471,2.2327059,59050.0,59049.0,6e-07]
[1725155792519,2.18079587,59050.0,59049.0,6e-07]
[1725155794490,1.84209987,59050.0,59049.0,6e-07]
[1725155795223,2.18079587,59050.0,59049.0,6e-07]
[1725155796932,2.18770715,59050.0,59049.0,6e-07]
[1725155798185,2.19270715,59050.0,59049.0,6e-07]
[1725155798600,2.22808627,59050.0,59049.0,6e-07]
[1725155799633,2.22890427,59050.0,59049.0,6e-07]
[1725155801397,2.23090427,59050.0,59049.0,6e-07]
[1725155801839,2.22890427,59050.0,59049.0,6e-07]
[1725155803896,2.19352515,59050.0,59049.0,6e-07]
[1725155806503,2.53222115,59050.0,59049.0,6e-07]
[1725155806708,2.19352515,59050.0,59049.0,6e-07]
[1725155808250,2.53222115,59050.0,59049.0,6e-07]
[1725155808512,2.19352515,59050.0,59049.0,6e-07]
[1725155808747,2.36207679,59050.0,59049.0,6e-07]
[1725155809173,2.19352515,59050.0,59049.0,6e-07]
[1725155811352,2.26150115,59050.0,59049.0,6e-07]
[1725155811606,2.60019715,59050.0,59049.0,6e-07]
[1725155811833,2.26150115,59050.0,59049.0,6e-07]
[1725155813719,2.26350115,59050.0,59049.0,6e-07]
[1725155814063,2.77074879,59050.0,59049.0,6e-07]
[1725155814769,2.76874879,59050.0,59049.0,6e-07]
[1725155819414,2.49606813,59050.0,59049.0,6e-07]
[1725155819655,2.09107213,59050.0,59049.0,6e-07]
[1725155819895,2.19520115,59050.0,59049.0,6e-07]
[1725155820365,2.53389715,59050.0,59049.0,6e-07]
[1725155821994,2.19520115,59050.0,59049.0,6e-07]
[1725155822679,2.18828987,59050.0,59049.0,6e-07]
[1725155826082,2.31079602,59046.0,59045.0,8e-07]
[1725155826282,2.37129602,59046.0,59045.0,8e-07]
[1725155826534,2.39429602,59046.0,59045.0,8e-07]
[1725155826774,2.49629602,59046.0,59045.0,8e-07]
[1725155827010,2.52287347,59046.0,59045.0,8e-07]
[1725155827770,2.55262812,59046.0,59045.0,8e-07]
[1725155828003,2.55062812,59046.0,59045.0,8e-07]
[1725155828721,2.55562812,59046.0,59045.0,8e-07]
[1725155828958,2.49512812,59046.0,59045.0,8e-07]
[1725155829453,2.49712812,59046.0,59045.0,8e-07]
[1725155830178,2.66567976,59046.0,59045.0,8e-07]
[1725155831381,2.66367976,59046.0,59045.0,8e-07]
[1725155831604,2.49512812,59046.0,59045.0,8e-07]
[1725155832028,2.49712812,59046.0,59045.0,8e-07]
[1725155833109,2.30609502,59038.0,59037.0,0.0445238]
[1725155833332,4.18176502,59038.0,59037.0,0.1054238]
[1725155833552,4.18176502,59038.0,59031.0,0.0004]
[1725155833553,1.185796,59032.0,59031.0,0.0004]
[1725155833783,4.12821802,59032.0,59031.0,0.0004]
[1725155833989,4.22821802,59032.0,59031.0,0.0004]
[1725155834191,4.25121802,59032.0,59031.0,0.0004]
[1725155834423,3.56596302,59032.0,59031.0,0.0004]
[1725155834634,3.41821602,59032.0,59031.0,0.0004]
[1725155835079,3.4377789,59032.0,59031.0,0.0004]
[1725155835289,2.76443679,59032.0,59031.0,0.066]
[1725155835500,2.86856581,59032.0,59031.0,0.066]
[1725155835715,2.85456581,59032.0,59031.0,0.066]
[1725155835917,2.86756581,59032.0,59031.0,0.066]
[1725155836139,2.86756581,59032.0,59031.0,0.148]
[1725155836617,2.79638514,59032.0,59031.0,0.148]
[1725155837244,2.80838514,59032.0,59031.0,0.148]
[1725155837463,2.78138514,59032.0,59031.0,0.148]
[1725155837685,2.80612292,59032.0,59031.0,0.148]
[1725155838099,2.81812292,59032.0,59031.0,0.148]
[1725155838518,2.79412292,59032.0,59031.0,0.148]
[1725155838754,2.77954113,59032.0,59031.0,0.148]
[1725155838930,2.79154113,59032.0,59031.0,0.148]
[1725155839167,2.77954113,59032.0,59031.0,0.148]
[1725155839386,1.96123111,59032.0,59031.0,0.148]
[1725155839720,2.06536013,59032.0,59031.0,0.148]
[1725155840130,2.05336013,59032.0,59031.0,0.0004]
[1725155840943,2.05236013,59032.0,59031.0,0.0004]
[1725155841160,2.04136013,59032.0,59031.0,0.0004]
[1725155841365,2.05036013,59032.0,59031.0,0.0004]
[1725155841969,2.08694174,59032.0,59031.0,0.0004]
[1725155845406,2.08694174,59032.0,59031.0,0.0012998]
[1725155846416,2.08775974,59032.0,59031.0,0.0012998]
[1725155847278,2.25220761,59032.0,59031.0,0.0012998]
[1725155847500,2.08775974,59032.0,59031.0,0.0012998]
[1725155849034,2.10548772,59032.0,59031.0,0.0012998]
[1725155849238,2.07890611,59032.0,59031.0,0.0012998]
[1725155849483,4.10173911,59032.0,59031.0,0.0012998]
[1725155849689,4.10147611,59032.0,59031.0,0.0012998]
[1725155851614,4.27002775,59032.0,59031.0,0.0012998]
[1725155851847,4.10147611,59032.0,59031.0,0.0012998]
[1725155852258,4.12805832,59032.0,59031.0,0.0012998]
[1725155852615,4.10924132,59032.0,59031.0,0.0012998]
[1725155853026,3.88015632,59032.0,59031.0,0.0012998]
[1725155854075,4.21895532,59032.0,59031.0,0.0012998]
[1725155855240,4.1148263,59032.0,59031.0,0.0012998]
[1725155855447,4.06252532,59032.0,59031.0,0.0012998]
[1725155856276,4.23107696,59032.0,59031.0,0.0012998]
[1725155857375,4.29507696,59032.0,59031.0,0.0012998]
[1725155857783,4.23107696,59032.0,59031.0,0.0012998]
[1725155858449,3.89227796,59032.0,59031.0,0.0012998]
[1725155858655,4.06252532,59032.0,59031.0,0.0012998]
[1725155859325,4.03594311,59032.0,59031.0,0.0012998]
[1725155860962,3.69714411,59032.0,59031.0,0.0012998]
[1725155862540,3.69714411,59032.0,59031.0,0.1436998]
[1725155862541,2.78057725,59032.0,59031.0,0.1436998]
[1725155862796,2.22202827,59032.0,59031.0,0.1436998]
[1725155863278,2.22202827,59032.0,59031.0,0.0012998]
[1725155863986,2.35263743,59032.0,59031.0,0.0012998]
[1725155864461,2.22202827,59032.0,59031.0,0.0012998]
[1725155865589,2.56082727,59032.0,59031.0,0.0012998]
[1725155865817,2.22202827,59032.0,59031.0,0.0012998]
[1725155868352,2.56082727,59032.0,59031.0,0.0012998]
[1725155868603,2.22202827,59032.0,59031.0,0.1413998]
[1725155869059,2.56082727,59032.0,59031.0,0.1413998]
[1725155869292,2.53424411,59032.0,59031.0,0.1413998]
[1725155870183,4.26486411,59032.0,59031.0,0.1413998]
[1725155870451,4.26486411,59032.0,59031.0,0.0012998]
[1725155870679,4.19174074,59032.0,59031.0,0.0012998]
[1725155871298,4.12017374,59032.0,59031.0,0.0012998]
[1725155871520,3.55571011,59032.0,59031.0,0.0012998]
[1725155871727,3.42596011,59032.0,59031.0,0.0012998]
[1725155871963,3.36388611,59032.0,59031.0,0.0012998]
[1725155872179,3.39046902,59032.0,59031.0,0.0012998]
[1725155873001,3.30679702,59032.0,59031.0,0.0012998]
[1725155873411,2.87039702,59032.0,59031.0,0.0012998]
[1725155874031,3.20919602,59032.0,59031.0,0.0012998]
[1725155874478,3.105067,59032.0,59031.0,0.0012998]
[1725155874693,2.766268,59032.0,59031.0,0.0012998]
[1725155874894,2.87039702,59032.0,59031.0,0.0012998]
[1725155875945,3.03894866,59032.0,59031.0,0.0012998]
[1725155878250,2.87039702,59032.0,59031.0,0.0012998]
[1725155878643,3.20919602,59032.0,59031.0,0.0012998]
[1725155879096,2.87039702,59032.0,59031.0,0.0012998]
[1725155880083,3.20919602,59032.0,59031.0,0.0012998]
[1725155880759,2.87039702,59032.0,59031.0,0.0012998]
[1725155880966,2.48884402,59032.0,59031.0,0.0012998]
[1725155881202,2.48884402,59032.0,59031.0,0.0618998]
[1725155881414,2.82764302,59032.0,59031.0,0.0012998]
[1725155882517,2.48884402,59032.0,59031.0,0.0012998]
[1725155883148,2.82764302,59032.0,59031.0,0.0012998]
[1725155886545,1.999857,59032.0,59031.0,0.0630998]
[1725155886756,2.10398602,59032.0,59031.0,0.1413998]
[1725155889137,2.09498602,59032.0,59031.0,0.1413998]
[1725155889349,2.87405202,59032.0,59031.0,0.1413998]
[1725155889571,2.88305202,59032.0,59031.0,0.1413998]
[1725155890055,2.66685702,59032.0,59031.0,0.1413998]
[1725155890297,2.66185702,59032.0,59031.0,0.1413998]
[1725155890538,3.00665602,59032.0,59031.0,0.0012998]
[1725155890770,2.84140866,59032.0,59031.0,0.0012998]
[1725155890991,2.84832037,59032.0,59031.0,0.0012998]
[1725155891214,2.67376873,59032.0,59031.0,0.0012998]
[1725155891633,2.67976873,59032.0,59031.0,0.0012998]
[1725155892080,2.67476873,59032.0,59031.0,0.0012998]
[1725155892313,2.68376873,59032.0,59031.0,0.0012998]
[1725155892522,2.68976873,59032.0,59031.0,0.0012998]
[1725155892953,2.85232037,59032.0,59031.0,0.0012998]
[1725155893180,2.86132037,59032.0,59031.0,0.0012998]
[1725155893827,3.20011937,59032.0,59031.0,0.0012998]
[1725155895710,3.19511937,59032.0,59031.0,0.0012998]
[1725155895931,3.20011937,59032.0,59031.0,0.0012998]
[1725155898405,3.09599035,59032.0,59031.0,0.0012998]
[1725155898612,3.20011937,59032.0,59031.0,0.0012998]
[1725155898825,3.03156773,59032.0,59031.0,0.0012998]
[1725155904791,3.02656773,59032.0,59031.0,0.0012998]
[1725155905068,3.03156773,59032.0,59031.0,0.0012998]
[1725155910562,2.12512073,59032.0,59031.0,0.0012998]
[1725155910785,4.62098073,59032.0,59031.0,0.0012998]
[1725155911422,4.78953237,59032.0,59031.0,0.0012998]
[1725155914480,4.18976373,59032.0,59031.0,0.0012998]
[1725155915817,4.18976373,59032.0,59025.0,0.001687]
[1725155915818,1.863581,59026.0,59025.0,0.001687]
[1725155916026,5.05511702,59026.0,59025.0,0.001687]
[1725155916241,5.03318302,59026.0,59025.0,0.001687]
[1725155916447,3.78608302,59026.0,59025.0,0.001687]
[1725155916661,3.80775237,59026.0,59025.0,0.001687]
[1725155916868,3.34393537,59026.0,59025.0,0.001687]
[1725155917304,2.32068135,59026.0,59025.0,0.001687]
[1725155917517,2.42681037,59026.0,59025.0,0.001687]
[1725155917728,2.42681037,59026.0,59025.0,0.066887]
[1725155918153,2.42581037,59026.0,59025.0,0.066887]
[1725155918571,2.42881037,59026.0,59025.0,0.066887]
[1725155919214,2.402223,59026.0,59025.0,0.066887]
[1725155919664,2.400223,59026.0,59025.0,0.066887]
[1725155919873,2.403223,59026.0,59025.0,0.066887]
[1725155920085,2.42859119,59026.0,59025.0,0.066887]
[1725155920760,2.25917519,59026.0,59025.0,0.066887]
[1725155921190,2.42859119,59026.0,59025.0,0.066887]
[1725155922842,2.32446217,59026.0,59025.0,0.066887]
[1725155923061,2.42859119,59026.0,59025.0,0.066887]
[1725155923294,2.13980619,59026.0,59025.0,0.066887]
[1725155923518,2.68567019,59026.0,59025.0,0.066887]
[1725155923735,2.71225584,59026.0,59025.0,0.066887]
[1725155923992,2.95010748,59026.0,59025.0,0.001687]
[1725155924225,2.95701937,59026.0,59025.0,0.001687]
[1725155924682,2.78846773,59026.0,59025.0,0.001687]
[1725155925364,2.72416773,59026.0,59025.0,0.001687]
[1725155928944,2.21620382,59026.0,59025.0,0.067887]
[1725155929156,2.29374719,59026.0,59025.0,0.067887]
[1725155929813,2.29374719,59026.0,59025.0,0.0687868]
[1725155930261,2.39374719,59026.0,59025.0,0.0687868]
[1725155932315,2.42033302,59026.0,59025.0,0.0687868]
[1725155934761,2.48673302,59026.0,59025.0,0.0025868]
[1725155935002,2.65528466,59026.0,59025.0,0.0025868]
[1725155935239,2.48673302,59026.0,59025.0,0.0025868]
[1725155938547,4.24799002,59026.0,59025.0,0.0025868]
[1725155939121,4.22140419,59026.0,59025.0,0.0025868]
[1725155942477,4.22913413,59026.0,59025.0,0.0025868]
[1725155942930,4.39768577,59026.0,59025.0,0.0025868]
[1725155943642,4.73651877,59026.0,59025.0,0.0025868]
[1725155943870,4.76310712,59026.0,59025.0,0.0025868]
[1725155947015,4.59455548,59026.0,59025.0,0.0025868]
[1725155952475,4.56796713,59026.0,59025.0,0.0025868]
[1725155952681,4.59455586,59026.0,59025.0,0.0025868]
[1725155955773,4.53315586,59026.0,59025.0,0.0025868]
[1725155957921,5.12900086,59026.0,59025.0,0.0025868]
[1725155958338,4.31411884,59026.0,59025.0,0.0025868]
[1725155958547,3.96235092,59026.0,59025.0,0.0025868]
[1725155960669,1.4610089,59026.0,59025.0,0.1406868]
[1725155960905,1.2624179,59026.0,59025.0,0.1406868]
[1725155961606,1.2594179,59026.0,59025.0,0.1406868]
[1725155961815,1.2564179,59026.0,59025.0,0.1406868]
[1725155962023,1.2594179,59026.0,59025.0,0.1406868]
[1725155962233,1.2604179,59026.0,59025.0,0.1406868]
[1725155962444,1.2574179,59026.0,59025.0,0.1406868]
[1725155962892,1.2584179,59026.0,59025.0,0.1406868]
[1725155963578,1.3584179,59026.0,59025.0,0.1406868]
[1725155964261,1.33204971,59026.0,59025.0,0.1406868]
[1725155964470,1.33304971,59026.0,59025.0,0.1406868]
[1725155964895,1.33204971,59026.0,59025.0,0.1406868]
[1725155965336,1.33304971,59026.0,59025.0,0.1406868]
[1725155965782,1.33204971,59026.0,59025.0,0.1406868]
[1725155966210,1.33304971,59026.0,59025.0,0.1406868]
[1725155977400,1.33304971,59026.0,59025.0,0.0025868]
[1725155977612,1.85274571,59026.0,59025.0,0.0025868]
[1725155977839,2.17963671,59026.0,59025.0,0.0025868]
[1725155978060,2.14898371,59026.0,59025.0,0.0025868]
[1725155978276,2.14798371,59026.0,59025.0,0.0025868]
[1725155978685,2.14998371,59026.0,59025.0,0.0025868]
[1725155978940,2.14898371,59026.0,59025.0,0.0025868]
[1725155979676,1.69488271,59026.0,59025.0,0.0025868]
[1725155979887,2.73828671,59026.0,59025.0,0.0025868]
[1725155980138,2.55080971,59026.0,59025.0,0.0025868]
[1725155980358,2.55280971,59026.0,59025.0,0.0025868]
[1725155980785,2.45009671,59026.0,59025.0,0.0025868]
[1725155981239,2.40624671,59026.0,59025.0,0.0025868]
[1725155983122,2.32772071,59026.0,59025.0,0.0025868]
[1725155988187,2.66655371,59026.0,59025.0,0.0025868]
[1725155988396,2.32772071,59026.0,59025.0,0.0025868]
[1725155988828,2.72745371,59026.0,59025.0,0.0025868]
[1725155989060,2.90297954,59026.0,59025.0,0.0025868]
[1725155989549,2.7344279,59026.0,59025.0,0.0025868]
[1725155989799,2.7324279,59026.0,59025.0,0.0025868]
[1725155990236,3.8119619,59026.0,59025.0,0.0025868]
[1725155990466,3.7303959,59026.0,59025.0,0.0025868]
[1725155990699,3.7283959,59026.0,59025.0,0.0025868]
[1725155991159,3.7313959,59026.0,59025.0,0.0025868]
[1725155993239,3.78670347,59026.0,59025.0,0.0025868]
[1725155994122,3.7313959,59026.0,59025.0,0.0025868]
[1725155994344,3.8130959,59026.0,59025.0,0.0025868]
[1725155997117,3.6885569,59026.0,59025.0,0.0025868]
[1725155998254,3.6276569,59026.0,59025.0,0.0025868]
[1725155999832,3.4528999,59026.0,59025.0,0.0025868]
[1725156000272,3.4102029,59026.0,59025.0,0.0025868]
[1725156000493,3.63965454,59026.0,59025.0,0.0025868]
[1725156001208,3.42678619,59026.0,59025.0,0.0025868]
[1725156001437,3.76561919,59026.0,59025.0,0.0025868]
[1725156001646,3.76561919,59026.0,59025.0,8e-07]
[1725156001647,3.42678619,59026.0,59025.0,8e-07]
[1725156001866,2.06127319,59026.0,59025.0,8e-07]
[1725156002318,2.40010619,59026.0,59025.0,8e-07]
[1725156002797,2.56865783,59026.0,59025.0,8e-07]
[1725156004396,1.631566,59026.0,59025.0,0.0611008]
[1725156004638,1.73569502,59026.0,59025.0,0.0611008]
[1725156005352,2.12457502,59026.0,59025.0,0.0611008]
[1725156005807,2.15455114,59026.0,59025.0,0.0611008]
[1725156006938,2.15455114,59026.0,59025.0,8e-07]
[1725156007167,1.93422278,59026.0,59025.0,8e-07]
[1725156007647,2.27305578,59026.0,59025.0,8e-07]
[1725156008141,2.27005578,59026.0,59025.0,8e-07]
[1725156008610,2.27005578,59026.0,59013.0,0.0206662]
[1725156008611,1.863961,59014.0,59013.0,0.0206662]
[1725156008871,5.06528066,59014.0,59013.0,0.0206662]
[1725156009119,5.27525976,59014.0,59013.0,0.0206662]
[1725156009348,4.85303176,59014.0,59013.0,0.0206662]
[1725156010373,4.68587176,59014.0,59013.0,0.0206662]
[1725156010868,4.68987176,59014.0,59013.0,0.0206662]
[1725156011137,5.02877376,59014.0,59013.0,0.0206662]
[1725156011640,5.03877376,59014.0,59013.0,0.0206662]
[1725156011887,5.05277376,59014.0,59013.0,0.0206662]
[1725156012128,5.02477376,59014.0,59013.0,0.0206662]
[1725156012582,5.03877376,59014.0,59013.0,0.0206662]
[1725156012823,5.03725497,59014.0,59013.0,0.0206662]
[1725156013044,5.02325497,59014.0,59013.0,0.0206662]